fUSD/lending_fUSD_20250217
["ID","MTS","AMOUNT","RATE_DAILY","PERIOD"]
[353388014,1739808659433,-707.26,0.00013862,2]
[353388015,1739808659442,-1044.02,0.00013862,2]
[353388016,1739808659452,-500.0,0.00013862,2]
[353388017,1739808659462,-1000.0,0.00013862,2]
[353388018,1739808659471,-1000.0,0.00013862,2]
[353388019,1739808659481,-1000.0,0.00013862,2]
[353388020,1739808659490,-1000.0,0.00013862,2]
[353388021,1739808659500,-1000.0,0.00013862,2]
[353388022,1739808659510,-1000.0,0.00013862,2]
[353388023,1739808659519,-1000.0,0.00013862,2]
[353388024,1739808659528,-1000.0,0.00013862,2]
[353388025,1739808659538,-981.07153407,0.00013862,2]
[353388026,1739808659547,-500.0,0.00013863,2]
[353388027,1739808659560,-500.0,0.00013863,2]
[353388028,1739808659569,-180.63189278,0.00013863,2]
[353388029,1739808659578,-500.0,0.00013863,2]
[353388030,1739808659587,-500.0,0.00013863,2]
[353388031,1739808659597,-500.0,0.00013863,2]
[353388032,1739808659607,-500.0,0.00013863,2]
[353388033,1739808659616,-500.0,0.00013863,2]
[353388034,1739808659626,-500.0,0.00013863,2]
[353388035,1739808659636,-500.0,0.00013863,2]
[353388036,1739808659646,-500.0,0.00013863,2]
[353388037,1739808659656,-500.0,0.00013863,2]
[353388038,1739808659666,-500.0,0.00013863,2]
[353388039,1739808659676,-500.0,0.00013863,2]
[353388040,1739808659692,-500.0,0.00013863,2]
[353388041,1739808659701,-500.0,0.00013863,2]
[353388042,1739808659710,-500.0,0.00013863,2]
[353388043,1739808659720,-500.0,0.00013863,2]
[353388044,1739808659729,-243.0612274,0.00013863,2]
[353388045,1739808659739,-500.0,0.00013863,2]
[353388046,1739808659748,-500.0,0.00013863,2]
[353388047,1739808659758,-500.0,0.00013863,2]
[353388048,1739808659767,-500.0,0.00013863,2]
[353388049,1739808659776,-736.96,0.00013863,2]
[353388050,1739808659786,-238.55224548,0.00013863,2]
[353388051,1739808659795,-500.0,0.00013863,2]
[353388052,1739808659806,-500.0,0.00013863,2]
[353388053,1739808659816,-500.0,0.00013863,2]
[353388054,1739808659825,-500.0,0.00013863,2]
[353388055,1739808659834,-500.0,0.00013863,2]
[353388056,1739808659844,-500.0,0.00013863,2]
[353388057,1739808659853,-500.0,0.00013863,2]
[353388058,1739808659863,-500.0,0.00013863,2]
[353388059,1739808659872,-500.0,0.00013863,2]
[353388060,1739808659882,-500.0,0.00013863,2]
[353388061,1739808659891,-500.0,0.00013863,2]
[353388062,1739808659901,-500.0,0.00013863,2]
[353388063,1739808659910,-500.0,0.00013863,2]
[353388064,1739808659920,-500.0,0.00013863,2]
[353388065,1739808659930,-500.0,0.00013863,2]
[353388066,1739808659939,-500.0,0.00013863,2]
[353388067,1739808659949,-500.0,0.00013863,2]
[353388068,1739808659959,-500.0,0.00013863,2]
[353388069,1739808659968,-500.0,0.00013863,2]
[353388070,1739808659977,-500.0,0.00013863,2]
[353388071,1739808659987,-500.0,0.00013863,2]
[353388072,1739808659996,-500.0,0.00013863,2]
[353388073,1739808660006,-500.0,0.00013863,2]
[353388074,1739808660016,-500.0,0.00013863,2]
[353388075,1739808660025,-500.0,0.00013863,2]
[353388076,1739808660035,-500.0,0.00013863,2]
[353388077,1739808660045,-500.0,0.00013863,2]
[353388078,1739808660058,-500.0,0.00013863,2]
[353388079,1739808660069,-500.0,0.00013863,2]
[353388080,1739808660079,-587.05,0.00013863,2]
[353388081,1739808660089,-500.0,0.00013863,2]
[353388082,1739808660099,-500.0,0.00013863,2]
[353388083,1739808660109,-500.0,0.00013863,2]
[353388084,1739808660119,-500.0,0.00013863,2]
[353388085,1739808660129,-500.0,0.00013863,2]
[353388086,1739808660138,-500.0,0.00013863,2]
[353388087,1739808660148,-579.69865365,0.00013863,2]
[353388088,1739808660158,-525.62,0.00013863,2]
[353388089,1739808660168,-500.0,0.00013863,2]
[353388090,1739808660179,-500.0,0.00013863,2]
[353388091,1739808660189,-500.0,0.00013863,2]
[353388092,1739808660199,-500.0,0.00013863,2]
[353388093,1739808660209,-500.0,0.00013863,2]
[353388094,1739808660219,-500.0,0.00013863,2]
[353388095,1739808660230,-500.0,0.00013863,2]
[353388096,1739808660239,-500.0,0.00013863,2]
[353388097,1739808660250,-500.0,0.00013863,2]
[353388098,1739808660259,-500.0,0.00013863,2]
[353388099,1739808660268,-500.0,0.00013863,2]
[353388100,1739808660280,-500.0,0.00013863,2]
[353388101,1739808660291,-500.0,0.00013863,2]
[353388102,1739808660305,-500.0,0.00013863,2]
[353388103,1739808660318,-500.0,0.00013863,2]
[353388104,1739808660328,-500.0,0.00013863,2]
[353388105,1739808660338,-500.0,0.00013863,2]
[353388106,1739808660349,-531.18,0.00013863,2]
[353388107,1739808660359,-500.0,0.00013863,2]
[353388108,1739808660370,-500.0,0.00013863,2]
[353388109,1739808660380,-500.0,0.00013863,2]
[353388110,1739808660392,-500.0,0.00013863,2]
[353388111,1739808660404,-531.89,0.00013863,2]
[353388112,1739808660415,-500.0,0.00013863,2]
[353388113,1739808660425,-500.0,0.00013863,2]
[353388114,1739808660436,-500.0,0.00013863,2]
[353388115,1739808660447,-500.0,0.00013863,2]
[353388116,1739808660457,-426.609506,0.00013863,2]
[353388117,1739808660467,-500.0,0.00013863,2]
[353388118,1739808660478,-500.0,0.00013863,2]
[353388119,1739808660489,-500.0,0.00013863,2]
[353388120,1739808660499,-500.0,0.00013863,2]
[353388121,1739808660510,-500.0,0.00013863,2]
[353388122,1739808660521,-541.83,0.00013863,2]
[353388123,1739808660530,-500.0,0.00013863,2]
[353388124,1739808660540,-500.0,0.00013863,2]
[353388125,1739808660552,-500.0,0.00013863,2]
[353388126,1739808660562,-500.0,0.00013863,2]
[353388127,1739808660572,-500.0,0.00013863,2]
[353388128,1739808660582,-500.0,0.00013863,2]
[353388129,1739808660592,-500.0,0.00013863,2]
[353388130,1739808660602,-500.0,0.00013863,2]
[353388131,1739808660612,-500.0,0.00013863,2]
[353388132,1739808660621,-500.0,0.00013863,2]
[353388133,1739808660630,-500.0,0.00013863,2]
[353388134,1739808660640,-683.15,0.00013863,2]
[353388135,1739808660650,-500.0,0.00013863,2]
[353388136,1739808660659,-500.0,0.00013863,2]
[353388137,1739808660669,-500.0,0.00013863,2]
[353388138,1739808660679,-500.0,0.00013863,2]
[353388139,1739808660689,-500.0,0.00013863,2]
[353388140,1739808660698,-500.0,0.00013863,2]
[353388141,1739808660708,-500.0,0.00013863,2]
[353388142,1739808660719,-500.0,0.00013863,2]
[353388143,1739808660729,-500.0,0.00013863,2]
[353388144,1739808660739,-1042.38,0.00013863,2]
[353388145,1739808660749,-528.06,0.00013863,2]
[353388146,1739808660759,-500.0,0.00013863,2]
[353388147,1739808660769,-385.740435,0.00013863,2]
[353388148,1739808660779,-500.0,0.00013863,2]
[353388149,1739808660788,-524.48,0.00013863,2]
[353388150,1739808660798,-500.0,0.00013863,2]
[353388151,1739808660810,-500.0,0.00013863,2]
[353388152,1739808660820,-500.0,0.00013863,2]
[353388153,1739808660829,-614.14,0.00013863,2]
[353388154,1739808660839,-500.0,0.00013863,2]
[353388155,1739808660849,-500.0,0.00013863,2]
[353388156,1739808660858,-500.0,0.00013863,2]
[353388157,1739808660869,-500.0,0.00013863,2]
[353388158,1739808660878,-500.0,0.00013863,2]
[353388159,1739808660888,-500.0,0.00013863,2]
[353388160,1739808660898,-500.0,0.00013863,2]
[353388161,1739808660908,-518.77,0.00013863,2]
[353388162,1739808660917,-500.0,0.00013863,2]
[353388163,1739808660927,-481.49599633,0.00013863,2]
[353388164,1739808660936,-500.0,0.00013863,2]
[353388165,1739808660946,-500.0,0.00013863,2]
[353388166,1739808660956,-500.0,0.00013863,2]
[353388167,1739808660965,-500.0,0.00013863,2]
[353388168,1739808660974,-500.0,0.00013863,2]
[353388169,1739808660983,-500.0,0.00013863,2]
[353388170,1739808660993,-500.0,0.00013863,2]
[353388171,1739808661003,-500.0,0.00013863,2]
[353388172,1739808661012,-500.0,0.00013863,2]
[353388173,1739808661021,-500.0,0.00013863,2]
[353388174,1739808661030,-500.0,0.00013863,2]
[353388175,1739808661040,-500.0,0.00013863,2]
[353388176,1739808661049,-500.0,0.00013863,2]
[353388177,1739808661061,-500.0,0.00013863,2]
[353388178,1739808661070,-500.0,0.00013863,2]
[353388179,1739808661080,-500.0,0.00013863,2]
[353388180,1739808661089,-500.0,0.00013863,2]
[353388181,1739808661099,-500.0,0.00013863,2]
[353388182,1739808661108,-500.0,0.00013863,2]
[353388183,1739808661117,-559.73,0.00013863,2]
[353388184,1739808661126,-500.0,0.00013863,2]
[353388185,1739808661136,-500.0,0.00013863,2]
[353388186,1739808661145,-500.0,0.00013863,2]
[353388187,1739808661155,-500.0,0.00013863,2]
[353388188,1739808661166,-500.0,0.00013863,2]
[353388189,1739808661175,-500.0,0.00013863,2]
[353388190,1739808661185,-500.0,0.00013863,2]
[353388191,1739808661194,-500.0,0.00013863,2]
[353388192,1739808661203,-500.0,0.00013863,2]
[353388193,1739808661212,-500.0,0.00013863,2]
[353388194,1739808661221,-581.49769047,0.00013863,2]
[353388195,1739808661231,-569.9,0.00013863,2]
[353388196,1739808661240,-500.0,0.00013863,2]
[353388197,1739808661250,-500.0,0.00013863,2]
[353388198,1739808661260,-538.35,0.00013863,2]
[353388199,1739808661269,-500.0,0.00013863,2]
[353388200,1739808661279,-500.0,0.00013863,2]
[353388201,1739808661289,-500.0,0.00013863,2]
[353388202,1739808661299,-523.5,0.00013863,2]
[353388203,1739808661313,-500.0,0.00013863,2]
[353388204,1739808661322,-500.0,0.00013863,2]
[353388205,1739808661331,-500.0,0.00013863,2]
[353388206,1739808661342,-500.0,0.00013863,2]
[353388207,1739808661351,-500.0,0.00013863,2]
[353388208,1739808661361,-500.0,0.00013863,2]
[353388209,1739808661370,-500.0,0.00013863,2]
[353388210,1739808661382,-500.0,0.00013863,2]
[353388211,1739808661392,-500.0,0.00013863,2]
[353388212,1739808661402,-500.0,0.00013863,2]
[353388213,1739808661411,-500.0,0.00013863,2]
[353388214,1739808661420,-500.0,0.00013863,2]
[353388215,1739808661430,-500.0,0.00013863,2]
[353388216,1739808661440,-555.61,0.00013863,2]
[353388217,1739808661450,-820.32,0.00013863,2]
[353388218,1739808661460,-500.0,0.00013863,2]
[353388219,1739808661469,-500.0,0.00013863,2]
[353388220,1739808661479,-500.0,0.00013863,2]
[353388221,1739808661489,-500.0,0.00013863,2]
[353388222,1739808661499,-500.0,0.00013863,2]
[353388223,1739808661508,-500.0,0.00013863,2]
[353388224,1739808661518,-500.0,0.00013863,2]
[353388225,1739808661527,-612.03,0.00013863,2]
[353388226,1739808661536,-500.0,0.00013863,2]
[353388227,1739808661546,-464.52,0.00013863,2]
[353388228,1739808661558,-500.0,0.00013863,2]
[353388229,1739808661568,-614.7,0.00013863,2]
[353388230,1739808661577,-500.0,0.00013863,2]
[353388231,1739808661587,-500.0,0.00013863,2]
[353388232,1739808661596,-590.37,0.00013863,2]
[353388233,1739808661605,-500.0,0.00013863,2]
[353388234,1739808661615,-500.0,0.00013863,2]
[353388235,1739808661625,-500.0,0.00013863,2]
[353388236,1739808661634,-500.0,0.00013863,2]
[353388237,1739808661644,-500.0,0.00013863,2]
[353388238,1739808661653,-500.0,0.00013863,2]
[353388239,1739808661662,-500.0,0.00013863,2]
[353388240,1739808661672,-500.0,0.00013863,2]
[353388241,1739808661682,-500.0,0.00013863,2]
[353388242,1739808661692,-500.0,0.00013863,2]
[353388243,1739808661701,-506.49,0.00013863,2]
[353388244,1739808661710,-500.0,0.00013863,2]
[353388245,1739808661720,-500.0,0.00013863,2]
[353388246,1739808661729,-500.0,0.00013863,2]
[353388247,1739808661739,-500.0,0.00013863,2]
[353388248,1739808661748,-633.0,0.00013863,2]
[353388249,1739808661757,-500.0,0.00013863,2]
[353388250,1739808661766,-512.98165728,0.00013863,2]
[353388251,1739808661775,-500.0,0.00013863,2]
[353388252,1739808661785,-500.0,0.00013863,2]
[353388253,1739808661794,-603.72,0.00013863,2]
[353388254,1739808661805,-524.42,0.00013863,2]
[353388255,1739808661814,-758.79,0.00013863,2]
[353388256,1739808661824,-300.38294297,0.00013863,2]
[353388257,1739808661833,-1073.87,0.00013863,2]
[353388258,1739808661843,-500.0,0.00013863,2]
[353388259,1739808661852,-500.0,0.00013863,2]
[353388260,1739808661862,-500.0,0.00013863,2]
[353388261,1739808661872,-500.0,0.00013863,2]
[353388262,1739808661882,-500.0,0.00013863,2]
[353388263,1739808661892,-521.99,0.00013863,2]
[353388264,1739808661902,-500.0,0.00013863,2]
[353388265,1739808661911,-500.0,0.00013863,2]
[353388266,1739808661921,-500.0,0.00013863,2]
[353388267,1739808661930,-500.0,0.00013863,2]
[353388268,1739808661940,-578.99,0.00013863,2]
[353388269,1739808661950,-949.81,0.00013863,2]
[353388270,1739808661959,-500.0,0.00013863,2]
[353388271,1739808661969,-500.0,0.00013863,2]
[353388272,1739808661979,-500.0,0.00013863,2]
[353388273,1739808661989,-163.8646999,0.00013863,2]
[353388274,1739808661998,-732.59,0.00013863,2]
[353388275,1739808662008,-500.0,0.00013863,2]
[353388276,1739808662018,-500.0,0.00013863,2]
[353388277,1739808662027,-500.0,0.00013863,2]
[353388278,1739808662037,-562.78692774,0.00013863,2]
[353388279,1739808662047,-500.0,0.00013863,2]
[353388280,1739808662059,-500.0,0.00013863,2]
[353388281,1739808662068,-674.25,0.00013863,2]
[353388282,1739808662078,-580.73,0.00013863,2]
[353388283,1739808662088,-500.0,0.00013863,2]
[353388284,1739808662097,-500.0,0.00013863,2]
[353388285,1739808662107,-540.38,0.00013863,2]
[353388286,1739808662117,-526.58,0.00013863,2]
[353388287,1739808662126,-500.0,0.00013863,2]
[353388288,1739808662136,-1547.95,0.00013863,2]
[353388289,1739808662147,-968.22,0.00013863,2]
[353388290,1739808662156,-169.08827156,0.00013863,2]
[353388291,1739808662166,-500.0,0.00013863,2]
[353388292,1739808662177,-721.79,0.00013863,2]
[353388293,1739808662187,-500.0,0.00013863,2]
[353388294,1739808662197,-500.0,0.00013863,2]
[353388295,1739808662207,-500.0,0.00013863,2]
[353388296,1739808662216,-500.0,0.00013863,2]
[353388297,1739808662226,-500.0,0.00013863,2]
[353388298,1739808662236,-500.0,0.00013863,2]
[353388299,1739808662246,-1218.87,0.00013863,2]
[353388300,1739808662255,-937.07,0.00013863,2]
[353388301,1739808662265,-500.0,0.00013863,2]
[353388302,1739808662275,-500.0,0.00013863,2]
[353388303,1739808662285,-500.0,0.00013863,2]
[353388304,1739808662295,-500.0,0.00013863,2]
[353388305,1739808662305,-500.0,0.00013863,2]
[353388306,1739808662319,-840.26,0.00013863,2]
[353388307,1739808662328,-500.0,0.00013863,2]
[353388308,1739808662339,-1047.93,0.00013863,2]
[353388309,1739808662348,-650.73,0.00013863,2]
[353388310,1739808662359,-500.0,0.00013863,2]
[353388311,1739808662369,-847.87,0.00013863,2]
[353388312,1739808662378,-500.0,0.00013863,2]
[353388313,1739808662389,-500.0,0.00013863,2]
[353388314,1739808662399,-500.0,0.00013863,2]
[353388315,1739808662408,-516.01,0.00013863,2]
[353388316,1739808662418,-510.83,0.00013863,2]
[353388317,1739808662428,-750.18,0.00013863,2]
[353388318,1739808662438,-553.39,0.00013863,2]
[353388319,1739808662447,-1008.95,0.00013863,2]
[353388320,1739808662458,-816.46,0.00013863,2]
[353388321,1739808662468,-500.0,0.00013863,2]
[353388322,1739808662478,-900.2,0.00013863,2]
[353388323,1739808662487,-500.0,0.00013863,2]
[353388324,1739808662497,-983.81,0.00013863,2]
[353388325,1739808662507,-632.76,0.00013863,2]
[353388326,1739808662517,-500.0,0.00013863,2]
[353388327,1739808662527,-574.17500961,0.00013863,2]
[353388328,1739808662537,-500.0,0.00013863,2]
[353388329,1739808662547,-651.22,0.00013863,2]
[353388330,1739808662560,-805.21,0.00013863,2]
[353388331,1739808662570,-500.0,0.00013863,2]
[353388332,1739808662579,-500.0,0.00013863,2]
[353388333,1739808662589,-660.48,0.00013863,2]
[353388334,1739808662598,-1280.9,0.00013863,2]
[353388335,1739808662608,-260.1,0.00013863,2]
[353388336,1739808662618,-2417.31,0.00013863,2]
[353388337,1739808662627,-1133.64,0.00013863,2]
[353388338,1739808662637,-500.0,0.00013863,2]
[353388339,1739808662647,-2006.91,0.00013863,2]
[353388340,1739808662657,-832.36,0.00013863,2]
[353388341,1739808662670,-500.0,0.00013863,2]
[353388342,1739808662680,-500.0,0.00013863,2]
[353388343,1739808662690,-500.0,0.00013863,2]
[353388344,1739808662700,-1188.46,0.00013863,2]
[353388345,1739808662709,-500.0,0.00013863,2]
[353388346,1739808662719,-500.0,0.00013863,2]
[353388347,1739808662729,-1022.75,0.00013863,2]
[353388349,1739808662739,-521.56,0.00013863,2]
[353388350,1739808662971,-840.29,0.00013863,2]
[353388351,1739808662981,-500.0,0.00013863,2]
[353388352,1739808662991,-500.0,0.00013863,2]
[353388353,1739808663001,-500.0,0.00013863,2]
[353388354,1739808663011,-500.0,0.00013863,2]
[353388355,1739808663020,-500.0,0.00013863,2]
[353388356,1739808663030,-1694.49,0.00013863,2]
[353388357,1739808663040,-500.0,0.00013863,2]
[353388358,1739808663050,-500.0,0.00013863,2]
[353388359,1739808663064,-500.0,0.00013863,2]
[353388360,1739808663074,-500.0,0.00013863,2]
[353388361,1739808663084,-544.77,0.00013863,2]
[353388362,1739808663093,-1015.96,0.00013863,2]
[353388363,1739808663104,-500.0,0.00013863,2]
[353388364,1739808663114,-1086.82,0.00013863,2]
[353388365,1739808663124,-253.59684513,0.00013863,2]
[353388366,1739808663134,-2321.33,0.00013863,2]
[353388367,1739808663145,-500.0,0.00013863,2]
[353388368,1739808663154,-1100.32,0.00013863,2]
[353388369,1739808663164,-500.0,0.00013863,2]
[353388370,1739808663175,-500.0,0.00013863,2]
[353388371,1739808663185,-711.15,0.00013863,2]
[353388372,1739808663195,-511.92,0.00013863,2]
[353388373,1739808663205,-500.0,0.00013863,2]
[353388374,1739808663215,-753.28,0.00013863,2]
[353388375,1739808663224,-2485.22,0.00013863,2]
[353388376,1739808663234,-976.24,0.00013863,2]
[353388377,1739808663243,-504.39,0.00013863,2]
[353388378,1739808663253,-500.0,0.00013863,2]
[353388379,1739808663262,-500.0,0.00013863,2]
[353388380,1739808663271,-500.0,0.00013863,2]
[353388381,1739808663281,-500.0,0.00013863,2]
[353388382,1739808663291,-500.0,0.00013863,2]
[353388383,1739808663307,-500.0,0.00013863,2]
[353388384,1739808663317,-876.02,0.00013863,2]
[353388385,1739808663327,-500.0,0.00013863,2]
[353388386,1739808663337,-754.85,0.00013863,2]
[353388387,1739808663346,-500.0,0.00013863,2]
[353388388,1739808663356,-970.02,0.00013863,2]
[353388389,1739808663365,-838.42,0.00013863,2]
[353388390,1739808663377,-500.0,0.00013863,2]
[353388391,1739808663388,-500.0,0.00013863,2]
[353388392,1739808663398,-500.0,0.00013863,2]
[353388393,1739808663408,-500.0,0.00013863,2]
[353388394,1739808663417,-500.0,0.00013863,2]
[353388395,1739808663428,-500.0,0.00013863,2]
[353388396,1739808663438,-500.0,0.00013863,2]
[353388397,1739808663448,-1415.29,0.00013863,2]
[353388398,1739808663458,-1411.31,0.00013863,2]
[353388399,1739808663468,-500.0,0.00013863,2]
[353388400,1739808663478,-500.0,0.00013863,2]
[353388401,1739808663488,-977.08,0.00013863,2]
[353388402,1739808663497,-500.0,0.00013863,2]
[353388403,1739808663507,-557.15,0.00013863,2]
[353388404,1739808663517,-500.0,0.00013863,2]
[353388405,1739808663526,-729.94,0.00013863,2]
[353388406,1739808663536,-630.44,0.00013863,2]
[353388407,1739808663547,-1590.87,0.00013863,2]
[353388408,1739808663566,-500.0,0.00013863,2]
[353388409,1739808663576,-983.09,0.00013863,2]
[353388410,1739808663587,-500.0,0.00013863,2]
[353388411,1739808663598,-500.0,0.00013863,2]
[353388412,1739808663608,-1355.54,0.00013863,2]
[353388413,1739808663617,-500.0,0.00013863,2]
[353388414,1739808663627,-500.0,0.00013863,2]
[353388415,1739808663638,-500.0,0.00013863,2]
[353388416,1739808663648,-203.79793555,0.00013863,2]
[353388417,1739808663658,-500.0,0.00013863,2]
[353388418,1739808663668,-500.0,0.00013863,2]
[353388419,1739808663679,-617.66,0.00013863,2]
[353388420,1739808663689,-890.71,0.00013863,2]
[353388421,1739808663700,-500.0,0.00013863,2]
[353388422,1739808663711,-664.2,0.00013863,2]
[353388423,1739808663721,-523.0,0.00013863,2]
[353388424,1739808663731,-527.12,0.00013863,2]
[353388425,1739808663741,-702.93,0.00013863,2]
[353388426,1739808663750,-500.0,0.00013863,2]
[353388427,1739808663760,-500.0,0.00013863,2]
[353388428,1739808663770,-1175.53,0.00013863,2]
[353388429,1739808663781,-500.0,0.00013863,2]
[353388430,1739808663790,-1296.19,0.00013863,2]
[353388431,1739808663800,-549.43,0.00013863,2]
[353388432,1739808663813,-1758.88,0.00013863,2]
[353388433,1739808663823,-500.0,0.00013863,2]
[353388434,1739808663834,-500.0,0.00013863,2]
[353388435,1739808663844,-1468.21,0.00013863,2]
[353388436,1739808663853,-931.33,0.00013863,2]
[353388437,1739808663863,-676.42,0.00013863,2]
[353388438,1739808663873,-500.0,0.00013863,2]
[353388439,1739808663883,-336.42455086,0.00013867,2]
[353388440,1739808663892,-575.59359384,0.00013872,2]
[353388441,1739808663902,-796.681,0.00013885,2]
[353388442,1739808663911,-150.0,0.00013885,2]
[353388443,1739808663921,-3917.0,0.00013885,2]
[353388444,1739808663931,-1007.0,0.00013885,2]
[353388445,1739808663941,-2000.0,0.000139,2]
[353388446,1739808663951,-2000.0,0.000139,2]
[353388447,1739808663960,-2000.0,0.000139,2]
[353388448,1739808663970,-2000.0,0.000139,2]
[353388449,1739808663980,-2000.0,0.000139,2]
[353388450,1739808663990,-1100.0,0.000139,5]
[353388451,1739808664000,-793.51,0.00013943,2]
[353388452,1739808664010,-500.0,0.00013943,2]
[353388453,1739808664020,-680.64,0.00013943,2]
[353388454,1739808664030,-500.0,0.00013943,2]
[353388455,1739808664040,-696.72,0.00013943,2]
[353388456,1739808664049,-1360.71,0.00013943,2]
[353388457,1739808664061,-500.0,0.00013943,2]
[353388458,1739808664071,-637.48,0.00013943,2]
[353388459,1739808664080,-794.87,0.00013943,2]
[353388460,1739808664090,-1049.34,0.00013943,2]
[353388461,1739808664100,-2710.8,0.00013943,2]
[353388462,1739808664110,-669.02,0.00013943,2]
[353388463,1739808664120,-769.08,0.00013943,2]
[353388464,1739808664130,-572.98,0.00013943,2]
[353388465,1739808664139,-990.85,0.00013943,2]
[353388466,1739808664148,-500.0,0.00013943,2]
[353388467,1739808664157,-611.41,0.00013943,2]
[353388468,1739808664167,-2000.0,0.00013944,2]
[353388469,1739808664176,-1177.85,0.00013944,2]
[353388470,1739808664186,-796.63,0.00013944,2]
[353388471,1739808664195,-960.02,0.00013944,2]
[353388472,1739808664205,-1000.0,0.00013944,2]
[353388473,1739808664215,-888.72,0.00013944,2]
[353388474,1739808664224,-500.0,0.00013944,2]
[353388475,1739808664234,-817.16,0.00013944,2]
[353388476,1739808664243,-707.26,0.00013944,2]
[353388477,1739808664254,-1044.02,0.00013944,2]
[353388478,1739808664263,-500.0,0.00013944,2]
[353388479,1739808664273,-491.17,0.00013945,2]
[353388480,1739808664283,-500.0,0.00013945,2]
[353388481,1739808664294,-500.0,0.00013945,2]
[353388482,1739808664307,-500.0,0.00013945,2]
[353388483,1739808664317,-500.0,0.00013945,2]
[353388484,1739808664326,-500.0,0.00013945,2]
[353388485,1739808664336,-500.0,0.00013945,2]
[353388486,1739808664346,-500.0,0.00013945,2]
[353388487,1739808664356,-500.0,0.00013945,2]
[353388488,1739808664366,-736.96,0.00013945,2]
[353388489,1739808664378,-500.0,0.00013945,2]
[353388490,1739808664388,-500.0,0.00013945,2]
[353388491,1739808664398,-500.0,0.00013945,2]
[353388492,1739808664407,-500.0,0.00013945,2]
[353388493,1739808664417,-500.0,0.00013945,2]
[353388494,1739808664427,-500.0,0.00013945,2]
[353388495,1739808664437,-500.0,0.00013945,2]
[353388496,1739808664447,-500.0,0.00013945,2]
[353388497,1739808664456,-500.0,0.00013945,2]
[353388498,1739808664466,-500.0,0.00013945,2]
[353388499,1739808664475,-500.0,0.00013945,2]
[353388500,1739808664485,-500.0,0.00013945,2]
[353388501,1739808664494,-500.0,0.00013945,2]
[353388502,1739808664504,-500.0,0.00013945,2]
[353388503,1739808664513,-500.0,0.00013945,2]
[353388504,1739808664523,-253.67613147,0.00013945,2]
[353388505,1739808664532,-500.0,0.00013945,2]
[353388506,1739808664541,-500.0,0.00013945,2]
[353388507,1739808664551,-500.0,0.00013945,2]
[353388508,1739808664563,-500.0,0.00013945,2]
[353388509,1739808664573,-500.0,0.00013945,2]
[353388510,1739808664582,-500.0,0.00013945,2]
[353388511,1739808664592,-500.0,0.00013945,2]
[353388512,1739808664602,-500.0,0.00013945,2]
[353388513,1739808664612,-500.0,0.00013945,2]
[353388514,1739808664623,-500.0,0.00013945,2]